Cogmind - Beta 9.4 @@@ ROGUE MODE // 2020.02.14 @ 07:23:31 Player: redd Result: Destroyed by S-10 Pest with Light Assault Rifle Performance ------------- Evolutions (0) 0 Regions Visited (1) 200 Robots Destroyed (10) 50 Value Destroyed (250) 250 Prototype IDs (0) 0 Alien Tech Used (0) 0 Bonus (0) 0 TOTAL SCORE: 500 Bonus ------- None Cogmind --------- Core Integrity 0/250 Matter 282/300 Energy 125/125 System Corruption 3% Temperature Cool (0) Movement Core (200) Ox3 Location -10/Materials Parts ------- > --- POWER (1) -------- Light Ion Engine > --- PROPULSION (2) --- (None) > --- UTILITY (2) ------ Medium Storage Unit > --- WEAPON (2) ------- (None) > --- INVENTORY (8) ---- Aluminum Leg Aluminum Leg Wheel Wheel Peak State ------------ > --- POWER ------------ Ion Engine > --- PROPULSION ------- Aluminum Leg Aluminum Leg > --- UTILITY ---------- Heat Sink Small Storage Unit > --- WEAPON ----------- Small Laser Assault Rifle > --- INVENTORY -------- Light Ion Engine Aluminum Leg Wheel Wheel [Rating: 7] Favorites ----------- Power Ion Engine Engine Ion Engine Propulsion Aluminum Leg Leg Aluminum Leg Utility Small Storage Unit Device Heat Sink Storage Small Storage Unit Weapon Assault Rifle Energy Gun Small Laser Ballistic Gun Assault Rifle Build | -11 -10 ------- Run | Scr Mat Slots Evolved . | . . Power . | . . Propulsion . | . . Utility . | . . Weapon . | . . Parts Attached 20 | 6 14 Power 2 | 1 1 Engine 2 | 1 1 Core . | . . Reactor . | . . Propulsion 9 | 2 7 Treads . | . . Leg 9 | 2 7 Wheel . | . . Hover . | . . Flight . | . . Utility 5 | 1 4 Device 2 | . 2 Storage 3 | 1 2 Processor . | . . Hackware . | . . Protection . | . . Artifact . | . . Weapon 4 | 2 2 Energy Gun 3 | 2 1 Energy Cannon . | . . Ballistic Gun 1 | . 1 Ballistic Cannon . | . . Launcher . | . . Special Weapon . | . . Impact Weapon . | . . Slashing Weapon . | . . Piercing Weapon . | . . Special Melee Weapon . | . . Unidentified Prototypes . | . . Parts Lost 9 | . 9 Power 1 | . 1 Propulsion 3 | . 3 Utility 1 | . 1 Weapon 4 | . 4 Highest Loss Streak 5 | . 5 Average Slot Usage (%) 89 | . 89 Engine 13 | . 13 Leg 27 | . 27 Device 7 | . 7 Storage 14 | . 14 Energy Gun 16 | . 16 Ballistic Gun 7 | . 7 Naked Turns . | . . Heaviest Build 17 | 13 17 Greatest Support 20 | 20 20 Greatest Overweight (x) 3 | . 3 Average Overweight (x) . | . . Largest Inventory Capacity 8 | 6 8 Average Capacity 6 | 4 6 Most Carried 6 | 4 6 Average Carried 4 | 2 5 Final Capacity 8 | 6 8 Final Carried 4 | 4 4 Class Distribution -------------------- 62% | Mutant 37% | Scavenger-Mutant Dominant Class ---------------- Mutant | -10/Materials Resources | -11 -10 ----------- Run | Scr Mat Matter Collected 433 | 215 218 Remotely . | . . Salvage Created 312 | . 312 Parts 15 | . 15 Haulers Intercepted . | . . Recyclers Shooed . | . . Parts Field Recycled . | . . Retrieved Matter . | . . Parts Self-Destructed . | . . Prevented . | . . Kills | -11 -10 ------- Run | Scr Mat Combat Hostiles Destroyed 9 | . 9 Guns 9 | . 9 Classes Destroyed 3 | . 3 Watcher 1 | . 1 Swarmer 3 | . 3 Grunt 6 | . 6 Best Kill Streak 4 | . 4 Combat Bots Only 3 | . 3 Max Kills in Single Turn 1 | . 1 Gunslinging . | . . Exploded . | . . Melee . | . . Uniques/NPCs Destroyed . | . . Combat | -11 -10 -------- Run | Scr Mat Damage Taken 1099 | . 1099 Core 250 | . 250 Absorbed by Shields . | . . Core Remaining (%) 100 | 100 . Volleys Fired 60 | . 60 Largest 2 | . 2 Hottest 90 | . 90 Shots Fired 102 | . 102 Gun 102 | . 102 Cannon . | . . Launcher . | . . Special . | . . Kinetic 44 | . 44 Thermal 42 | . 42 Explosive . | . . Electromagnetic 16 | . 16 Robot Hit Streak 7 | . 7 Robot Miss Streak 8 | . 8 Penetration Max . | . . Secondary Targets 3 | . 3 Max Gunslinging Chain 1 | . 1 Shots Hit Robots 62 | . 62 Core Hits 21 | . 21 Critical Hits 1 | . 1 Critical Kills 1 | . 1 Critical Parts Destroyed . | . . Melee Attacks . | . . Impact . | . . Slashing . | . . Piercing . | . . Sneak Attacks . | . . Combat Hostiles . | . . Follow-up Attacks . | . . Damage Inflicted 680 | . 680 Guns 617 | . 617 Cannons . | . . Explosions 48 | . 48 Melee . | . . Ramming 15 | . 15 Kinetic 222 | . 222 Thermal 294 | . 294 Explosive . | . . Electromagnetic 149 | . 149 Impact . | . . Slashing . | . . Piercing . | . . Highest Corruption 3 | . 3 Average Corruption 1 | . 1 Corruption Purged . | . . Overload Shots . | . . Overflow Damage . | . . Projectiles . | . . Explosions . | . . Melee . | . . Knockbacks . | . . Impact . | . . Kinetic . | . . Secondary . | . . Self-Inflicted Damage 3 | . 3 Shots . | . . Rammed 8 | . 8 Targets Rammed 10 | . 10 Kicked 2 | . 2 Crushed . | . . Highest Temperature 409 | . 409 Average Temperature 224 | . 224 Received Heat Transfer 417 | . 417 Effects 3 | . 3 Shutdowns 1 | . 1 Energy Bleed 1 | . 1 Short Circuit 1 | . 1 Siege Activations . | . . Robots Corrupted . | . . Combat Hostiles . | . . Parts Fried . | . . Impact Corruptions . | . . Robots Melted . | . . Combat Hostiles . | . . Parts Melted 1 | . 1 Heat Transferred 710 | . 710 Parts Sabotaged . | . . Parts Stolen . | . . Parts Stripped . | . . Power Chain Reactions 1 | . 1 Missiles Intercepted . | . . Alert | -11 -10 ------- Run | Scr Mat Peak Influence 227 | . 227 Average Influence 63 | . 72 Maximum Alert Level 1 | . 1 Low Security (%) 90 | 100 89 Level 1 9 | . 10 Level 2 . | . . Level 3 . | . . Level 4 . | . . Level 5 . | . . High Security . | . . Max Security . | . . Squads Dispatched 5 | . 5 Investigation 3 | . 3 Extermination . | . . Reinforcement 2 | . 2 Assault . | . . Garrison . | . . Intercept . | . . Construction Impeded . | . . Haulers Reinforced . | . . Stealth | -11 -10 --------- Run | Scr Mat Distress Signals 1 | . 1 Communications Jammed . | . . Distress Signals . | . . Times Spotted 25 | . 25 Peak Tracking Total 8 | . 8 Tactical Retreats 3 | . 3 Traps | -11 -10 ------- Run | Scr Mat Traps Triggered . | . . Indirectly . | . . Trap Hack Attempts . | . . Triggered . | . . Disarmed . | . . Reprogrammed . | . . Reused . | . . Traps Extracted . | . . Installed . | . . Triggered . | . . Machines | -11 -10 ---------- Run | Scr Mat Machines Disabled . | . . Max in Single Turn . | . . Machines Sabotaged . | . . Garrisons Compromised . | . . Overloaded Fab Kills . | . . Fab Network Shutdowns . | . . Hacking | -11 -10 --------- Run | Scr Mat Machines Accessed 3 | . 3 Terminals 2 | . 2 Fabricators . | . . Repair Stations 1 | . 1 Recycling Units . | . . Scanalyzers . | . . Garrison Access . | . . Total Hacks 7 | . 7 Successful 2 | . 2 Failed 5 | . 5 Catastrophic . | . . Database Lockouts . | . . Manual 1 | . 1 Terminals 5 | . 5 Fabricators . | . . Repair Stations 2 | . 2 Recycling Units . | . . Scanalyzers . | . . Garrison Access . | . . Terminal Hacks 1 | . 1 Alert Level 1 | . 1 Fabricator Hacks . | . . Repair Station Hacks 1 | . 1 Scan Component 1 | . 1 Recycling Unit Hacks . | . . Scanalyzer . | . . Garrison Access Hacks . | . . Unauthorized Hacks . | . . Terminals . | . . Fabricators . | . . Repair Stations . | . . Recycling Units . | . . Scanalyzers . | . . Garrison Access . | . . Data Cores Recovered . | . . Used . | . . Hacking Detections 3 | . 3 Full Trace Events 2 | . 2 Feedback Events . | . . Feedback Blocked . | . . Robot Schematics Acquired . | . . Robots Built . | . . Matter . | . . Time . | . . Total Robot Build Rating . | . . Part Schematics Acquired . | . . Parts Built . | . . Matter . | . . Time . | . . Total Part Build Rating . | . . Parts Repaired . | . . Time . | . . Parts Recycled . | . . Recycled Matter . | . . Retrieved Matter . | . . Retrieved Components . | . . Parts Scanalyzed . | . . Part Schematics Acquired . | . . Parts Damaged . | . . Bothacking | -11 -10 ------------ Run | Scr Mat Used RIF Installer . | . . Robots Hacked . | . . Non-combat . | . . Combat . | . . Robot Hacks Applied . | . . Relay Couplers Released . | . . Robots Rewired . | . . Allies Hacked . | . . Hacks Repelled . | . . Allies | -11 -10 -------- Run | Scr Mat Total Allies . | . . Largest Group . | . . Highest-Rated Group . | . . Highest-Rated Ally . | . . Total Orders . | . . Ally Attacks . | . . Total Damage . | . . Kills . | . . Allies Corrupted . | . . Allies Melted . | . . Intel | -11 -10 ------- Run | Scr Mat Robot Analysis Total . | . . Derelict Logs Recovered . | . . Drone Launches . | . . Drone Recoveries . | . . Exploration | -11 -10 ------------- Run | Scr Mat Turns Passed 815 | 96 719 Spaces Moved 354 | 71 283 Core 7 | 6 1 Treads . | . . Legs 347 | 65 282 Wheels . | . . Hover . | . . Flight . | . . Fastest Speed 50 | 50 120 Average Speed 119 | 114 120 Slowest Speed 200 | 120 200 Overloaded Moves . | . . Propulsion Burnouts . | . . Robots Hopped . | . . Cave-ins Triggered . | . . Exploration Rate (%) 27 | 5 49 Regions Visited 1 Branch Regions . Pre-discovered Areas . | . . Known Exits Taken . | . . Unknown Exits Taken 1 | 1 . Scrap Searched . | . . Spaces Dug . | . . Terrain Destroyed 3 | . 3 Melee . | . . Projectile . | . . AOE 3 | . 3 Actions | -11 -10 --------- Run | Scr Mat Total 639 | 86 553 Wait 176 | . 176 Move 353 | 70 283 Hop . | . . Pick Up 16 | 10 6 Fast Attach . | . . Attach 11 | 6 5 Detach . | . . Swap 9 | . 9 Drop 4 | . 4 Fire 60 | . 60 Melee . | . . Ram 5 | . 5 Kick 5 | . 5 Crush . | . . Escape Stasis . | . . Rewire . | . . Trap . | . . Miscellaneous . | . . Route ------- -11/Scrapyard -10/Materials (discovered 1 exit: [*Mat]) History --------- Turn | Location | Event 2 | -11/Scrapyard | Discovered new exit (range 16) 97 | -11/Scrapyard | Entered Materials 307 | -10/Materials | Build established: Mutant 774 | -10/Materials | Discovered new exit (range 14) 798 | -10/Materials | Core integrity fell below 50% 808 | -10/Materials | Core integrity fell below 20% 816 | -10/Materials | Destroyed by S-10 Pest with Light Assault Rifle Last Messages --------------- 00790_ Aluminum Leg destroyed. 00791_ K-01 Serf cleans the Electrolysis Chamber. 00792_ Slammed into S-10 Pest. 00793_ Kicked S-10 Pest out of the way. 00795_ Slammed into S-10 Pest. 00795_ Destabilizing: System corrupted (+1). 00795_ Ion Engine destroyed. 00796_ Slammed into S-10 Pest. 00797_ Kicked S-10 Pest out of the way. 00800_ U-05 Engineer destroyed. 00802_ Aluminum Leg destroyed. 00804_ K-01 Serf collects debris. 00805_ Aluminum Leg destroyed. 00805_ S-10 Pest destroyed. 00807_ Slammed into G-34 Mercenary. 00808_ K-01 Serf collects debris. 00809_ Slammed into G-34 Mercenary. 00809_ Destabilizing: Core damaged (-10). 00811_ Slammed into G-34 Mercenary. 00815_ Destabilizing: System corrupted (+2). Map ----- +----------------------------------------------------+ | ????# +???????????????????????????????? | | ????# #???????????????????????????????? | | ????# ###########?????????????????????? | | ????# # #?????????????????????? | | ????# # """ """ #?????????? T ????????? | | ????# # """ """ #?????????? ???????? | | ????#^ ^# """ """ #?????????? ???????? | | ##### + #?????????? #???????? | | # ""T"" #?????????? #???????? | | # """"" #?????????? #???????? | | # #?????????? #???????? | | ####+########?????????# #???????? | | #??# #????????????????# #???????? | | #??# #??????########### +???????? | | #??# ######## # #???????? | | #??#% + # #???????? | | "T" #??# ######## """ """ # #???????? | | #??# #??????# """ """ # #???????? | | #??# #??????# """ """ # #???????? | | #??# #??????# s =/ #???????? | | #### #??????# * [%# #???????? | | = ####???# !%!g =# #???????? | | % !!##??###+###g### #???????? | | !#????# #?#s#?# #???????? | | ### !#????# #?# #?# #???????? | | ??# !#????# #?#@#?# #???????? | | ??# !#????# ###g### #???????? | | ??# !!##????# g #???????? | | ??# ####?????# #???????? | | ??# #????????# +???????? | | ??# #????????######+## #???????? | | ??# #?????????????? # #???????? | | ??+ #?????????????? # ??????? | | ??# #?????????????? # ????? | | ??# ##+###?????????????? # ???? | | ??# #??????????????????? #????# < #??? | | ??# #???????????????????" #?????? ???? | | ??? #???????????????????" #???????#???? | | ??? ????????????????????? #???????????? | | ??????????????????????????? #???????????? | | ????????????????????????????#???????????? | | ????????????????????????????????????????? | | ????????????????????????????????????????? | | ????????????????????????????????????????? | | ????????????????????????????????????????? | | ????????????????????????????????????????? | | ????????????????????????????????????????? | | | | | | | +----------------------------------------------------+ Best States ------------- Heat Dissipation 35 Energy Generation 10 Energy Capacity 250 Matter Stores 300 Matter Capacity 300 Sight Range 16 Terrain Scan Density 10 Evasion (%) 40 Item Schematics ----------------- None Robot Schematics ------------------ None Fabricated ------------ Nothing Alien Tech Used ----------------- None Achievements -------------- None Challenges ------------ None Game ------ Seed StorageCatalystCore Manual? 0 Play Time 00:28:54 Cumulative 22.2 hours Start 2020.02.14 @ 05:39:37 End 2020.02.14 @ 07:23:31 Sessions 2 Manual Loads 0 Difficulty Rogue Special Mode None Game No. 15 Rogue 15 Adventurer 0 Explorer 0 Win Type - Total 0 Types 0/0/0/0/0/0/0 Lore% 9 Gallery% 13 Achievement% 7 Wizard Run 0 Options --------- ASCII 1 Keyboard 0 Movement Mouse Keybinds 0 Fullscreen 2 Font 20/Terminus Map View 66x50 Tactical HUD 1 Map Filters NONE Filters NONE Steam 1 RUN: 7bcc88b4-e462-4283-abd5-b6dfbcb54c91